[Event "XIV Figueira da Foz Open 2020"]
[Site "Figueira da Foz"]
[Date "2020.10.28"]
[Round "6.18"]
[White "Marcal, Armando Paulo Gomes"]
[Black "Dias, Jose Oliveira Gaspar"]
[Result "1-0"]
[ECO "E90"]
[WhiteElo "1652"]
[BlackElo "1589"]
[Annotator "NA RC"]
[PlyCount "117"]
[EventDate "2020.10.24"]
[EventType "swiss"]
[EventCountry "POR"]
[SourceTitle "playchess.com"]
[Source "ChessBase"]
[SourceQuality "1"]
[TimeControl "40/5400+30:1800+30"]

1. e4 {[%emt 0:03:32]} g6 {[%emt 0:00:00]} 2. Nf3 {[%emt 0:01:20]} Bg7 {[%emt 0:00:00]} 3. d4 {[%emt 0:00:07]} d6 {[%emt 0:00:05]} 4. c4 {[%emt 0:01:40]} Nf6 {[%emt 0:00:10]} 5. Nc3 {[%emt 0:00:07]} O-O {[%emt 0:00:05]} 6. Bd3 {[%emt 0:00:33]} Nbd7 {[%emt 0:02:22]} 7. O-O {[%emt 0:00:36]} h6 {[%emt 0:01:52]} 8. Bd2 {[%emt 0:05:28]} e5 {[%emt 0:01:28]} 9. d5 {[%emt 0:00:51]} a6 {[%emt 0:02:24]} 10. Ne1 {[%emt 0:06:58]} Rb8 {[%emt 0:01:06]} 11. f3 {[%emt 0:03:36]} Nc5 {[%emt 0:02:08]} 12. Bc2 {[%emt 0:00:13]} b5 {[%emt 0:01:01]} 13. b4 {[%emt 0:00:40]} Ncd7 {[%emt 0:00:33]} 14. cxb5 {[%emt 0:00:36]} axb5 {[%emt 0:00:11]} 15. Be3 {[%emt 0:01:05]} Nb6 {[%emt 0:02:06]} 16. Bd3 {[%emt 0:00:38]} Nc4 {[%emt 0:00:29]} 17. Bc1 {[%emt 0:01:36]} Bd7 {[%emt 0:01:11]} 18. Qe2 {[%emt 0:00:51]} c6 {[%emt 0:00:52]} 19. dxc6 {[%emt 0:05:00]} Bxc6 {[%emt 0:01:44]} 20. a4 {[%emt 0:03:00]} d5 {[%emt 0:02:09]} 21. axb5 {[%emt 0:03:59]} Qb6+ {[%emt 0:04:50]} 22. Kh1 {[%emt 0:01:19]} Bxb5 {[%emt 0:00:24]} 23. Nxb5 {[%emt 0:05:48]} Qxb5 {[%emt 0:00:13]} 24. exd5 {[%emt 0:02:20]} Rfc8 {[%emt 0:00:58]} 25. Nc2 {[%emt 0:08:34]} Nxd5 {[%emt 0:02:13]} 26. Ra5 {[%emt 0:00:49]} Qd7 {[%emt 0:03:55]} 27. Bxc4 {[%emt 0:01:04]} Nb6 {[%emt 0:09:16]} 28. Bb3 {[%emt 0:02:53]} Rc3 {[%emt 0:00:30]} 29. Na1 {[%emt 0:04:07]} Rbc8 {[%emt 0:00:39]} 30. Rc5 {[%emt 0:00:36]} R3xc5 {[%emt 0:03:56]} 31. bxc5 {[%emt 0:00:36]} Rxc5 {[%emt 0:00:05]} 32. Be3 {[%emt 0:01:09]} Qb5 {[%emt 0:02:39]} 33. Qf2 {[%emt 0:03:02]} Rc6 {[%emt 0:00:57]} 34. Kg1 {[%emt 0:01:59]} Nd5 {[%emt 0:03:05]} 35. Qa2 {[%emt 0:02:46]} Nxe3 {[%emt 0:05:58]} 36. Bxf7+ {[%emt 0:02:35]} Kh7 {[%emt 0:00:08]} 37. Rb1 {[%emt 0:00:54]} Qc5 {[%emt 0:04:38]} 38. Nb3 {[%emt 0:01:20]} Qe7 {[%emt 0:00:55]} 39. Bg8+ {[%emt 0:00:00]} Kxg8 {[%emt 0:00:00]} 40. Qa8+ {[%emt 0:00:00]} Kh7 {[%emt 0:00:00]} 41. Qxc6 {[%emt 0:05:15]} Qg5 {[%emt 0:02:42]} 42. Rb2 {[%emt 0:04:11]} h5 {[%emt 0:01:32]} 43. Qe4 {[%emt 0:03:04]} h4 {[%emt 0:01:06]} 44. h3 {[%emt 0:00:43]} Bf6 {[%emt 0:04:45]} 45. Nc5 {[%emt 0:00:55]} Nf5 {[%emt 0:01:03]} 46. Rb7+ {[%emt 0:03:44]} Kh6 {[%emt 0:00:40]} 47. Nd3 {[%emt 0:03:03]} Nd6 {[%emt 0:01:24]} 48. Nf2 {[%emt 0:03:17]} Nxe4 {[%emt 0:02:54]} 49. Ng4+ {[%emt 0:01:31]} Kh5 {[%emt 0:01:24]} 50. Rh7+ {[%emt 0:00:42]} Qh6 51. Rxh6+ Kg5 {[%emt 0:04:26]} 52. fxe4 {[%emt 0:00:56]} Bd8 {[%emt 0:01:08]} 53. Rh8 {[%emt 0:01:08]} Bb6+ {[%emt 0:00:15]} 54. Kf1 {[%emt 0:01:09]} Bd4 {[%emt 0:00:17]} 55. Ke2 {[%emt 0:00:18]} Kf4 {[%emt 0:00:26]} 56. Ne3 {[%emt 0:02:43]} Bxe3 {[%emt 0:00:22]} 57. Rxh4+ {[%emt 0:00:21]} Kg5 {[%emt 0:00:49]} 58. Rg4+ {[%emt 0:00:11]} Kh5 {[%emt 0:00:26]} 59. Kxe3 1-0

[Event "XIV Figueira da Foz Open 2020"]
[Site "Figueira da Foz"]
[Date "2020.10.29"]
[Round "7.19"]
[White "Santos, Luis Manuel Freire R"]
[Black "Fernandes, Rui Miguel"]
[Result "1-0"]
[ECO "A46"]
[WhiteElo "1891"]
[BlackElo "1027"]
[Annotator "NA RC"]
[PlyCount "73"]
[EventDate "2020.10.24"]
[EventType "swiss"]
[EventCountry "POR"]
[SourceTitle "playchess.com"]
[Source "ChessBase"]
[SourceQuality "1"]
[TimeControl "40/5400+30:1800+30"]

1. d4 Nf6 {[%emt 0:00:00]} 2. Nf3 {[%emt 0:04:56]} e6 {[%emt 0:01:25]} 3. c4 Nc6 {[%emt 0:02:55]} 4. e3 {[%emt 0:02:40]} Bb4+ 5. Nc3 Bxc3+ {[%emt 0:02:03]} 6. bxc3 {[%emt 0:01:27] E40: Nimzo-Indian: Rubinstein (4 e3): Unusual Black 4th moves.} O-O {[%emt 0:00:12]} 7. Bd3 {[%emt 0:00:14]} Re8 {[%emt 0:05:14]} 8. O-O {[%emt 0:06:53]} b6 {[%emt 0:03:55]} 9. e4 {[%emt 0:08:14]} e5 {[%emt 0:02:23]} ({Black should play} 9... d6 $14) 10. d5 {[%emt 0:04:29] [#]} (10. dxe5 $16 Nxe5 11. Nxe5 Rxe5 12. f4) 10... Na5 $146 {[%emt 0:03:26]} ({Predecessor:} 10... Nb8 11. Ba3 d6 12. Qc2 Na6 13. Bc1 Nd7 14. Be3 Nac5 15. Nd2 a5 16. Nb3 Nxd3 17. Qxd3 {0-1 (44) De Mello,J (1638)-Fonseca,L (1972) Porto Alegre 2016}) 11. Nh4 Nxe4 12. Qg4 {[%emt 0:12:19]} Nf6 {[%emt 0:02:53]} 13. Qg3 {[%emt 0:09:12]} e4 {[%emt 0:03:28]} (13... d6 $17 14. Nf5 Bxf5 15. Bxf5 Nxc4) 14. Nf5 {[%emt 0:04:43] [#]} Nh5 $1 {[%emt 0:01:48]} 15. Qg4 {[%emt 0:03:28] [#]} d6 {[%emt 0:02:42]} ({Black should play} 15... g6 $1 $17 16. Nh6+ (16. Bxe4 $2 Nf6 $19 {[%mdl 64] Double Attack}) 16... Kg7 17. Nf5+ (17. Bxe4 $2 Nf6 $19 {[%mdl 64] Double Attack}) 17... Kg8) 16. Bxe4 {[%emt 0:05:36]} Bxf5 {[%emt 0:02:27]} 17. Bxf5 {[%emt 0:04:29]} g6 {[%emt 0:01:50]} ({Black should play} 17... Nf6 $11 18. Qh4 h6) 18. Bd7 $2 {[%emt 0:04:17]} (18. Bg5 $11 {and White stays safe.} f6 19. Be6+ Kh8 20. Bh6) 18... Nf6 $1 {[%emt 0:01:44] Double Attack} 19. Bg5 {[%emt 0:07:44]} Nxg4 {[%emt 0:00:49]} 20. Bxd8 {[%emt 0:00:17]} Rexd8 {[%emt 0:01:48]} 21. Bxg4 {[%emt 0:00:16]} Nxc4 {[%emt 0:00:16]} 22. Rfe1 {[%emt 0:01:00]} Re8 {[%emt 0:01:01]} 23. Be2 {[%emt 0:01:00]} Ne5 {[%emt 0:02:52]} 24. f4 {[%emt 0:01:13]} Nd7 {[%emt 0:00:58]} 25. Bb5 {[%emt 0:00:29]} Rxe1+ {[%emt 0:01:33]} 26. Rxe1 {[%emt 0:00:01]} Nf6 {[%emt 0:01:16]} 27. Re7 {[%emt 0:01:30]} (27. Kf2 $17) 27... c5 $2 {[%emt 0:01:12]} (27... Nxd5 $19 28. Rd7 Nxc3) 28. dxc6 {[%emt 0:00:40]} Nd5 $2 {[%emt 0:03:21]} (28... a6 $1 $11 {and Black is okay.} 29. Ba4 Rc8) 29. Rb7 $18 {[%emt 0:01:01]} (29. Rd7 $142) 29... Nxc3 {[%emt 0:01:07]} 30. c7 {[%emt 0:02:15]} Rc8 {[%emt 0:03:01]} 31. Rb8 {[%emt 0:00:29]} Nxb5 {[%emt 0:05:14]} 32. Rxc8+ {[%emt 0:00:15]} Kg7 {[%emt 0:00:39]} 33. a4 {[%emt 0:00:00]} Nxc7 {[%emt 0:01:01]} 34. Rxc7 {[%emt 0:00:16]} a5 {[%emt 0:00:09]} 35. Rb7 {[%emt 0:00:24]} Kf6 {[%emt 0:00:53]} 36. Rxb6 {[%emt 0:00:23]} Ke6 {[%emt 0:00:06]} 37. Rb5 {[%emt 0:00:26]} 1-0

[Event "XIV Figueira da Foz Open 2020"]
[Site "Figueira da Foz"]
[Date "2020.10.30"]
[Round "8.14"]
[White "Soares, Sara Joana De Moura "]
[Black "Silva, Mariana Sofia T."]
[Result "0-1"]
[ECO "B38"]
[WhiteElo "1654"]
[BlackElo "1885"]
[Annotator "NA RC"]
[PlyCount "100"]
[EventDate "2020.10.24"]
[EventType "swiss"]
[EventCountry "POR"]
[SourceTitle "playchess.com"]
[Source "ChessBase"]
[SourceQuality "1"]
[TimeControl "40/5400+30:1800+30"]

{[%evp 8,99,15,47,35,34,43,-71,-60,-143,-162,-151,-97,-108,-97,-180,-176,-225,-277,-262,-254,-381,-383,-368,-456,-437,-458,-580,-400,-360,-395,-377,-400,-396,-317,-402,-445,-472,-517,-506,-553,-459,-482,-481,-382,-507,-241,-491,-560,-512,-356,-372,-303,-326,-298,-339,-365,-335,-408,-429,32767,32767,32767,-359,-333,-676,0,-377,-487,-370,-292,-359,-552,-531,-438,-675,32767,32767,32767,32767,32767,32767,-29984,-29994,-29985,-29995,-29996,-29996,-29997,-29997,-29998,-29998,-29999,-29999]} 1. e4 c5 {[%emt 0:06:05]} 2. Nf3 {[%emt 0:04:30]} g6 {[%emt 0:00:07]} 3. d4 {[%emt 0:00:30]} cxd4 {[%emt 0:00:05]} 4. Nxd4 {[%emt 0:00:11]} Nc6 {[%emt 0:00:06]} 5. c4 {[%emt 0:00:28]} Bg7 {[%emt 0:00:05]} 6. Be3 {[%emt 0:00:17]} Nf6 {[%emt 0:00:11]} 7. Be2 {[%emt 0:00:22] B38: Sicilian: Maroczy Bind with 5...Bg7 and 7...0-0.} (7. Nc3 $14 {keeps the upper hand.}) 7... Nxe4 {[%emt 0:05:58]} 8. Bf3 {[%emt 0:00:53]} (8. O-O $142) 8... Qa5+ {[%emt 0:04:03] [#]} 9. Kf1 $146 {[%emt 0:01:50]} ({Predecessor:} 9. Ke2 Qe5 10. Nc3 Nxd4+ 11. Qxd4 Nxc3+ 12. bxc3 O-O 13. Qxe5 Bxe5 14. Rab1 Rb8 15. Bxa7 {½-½ (48) Abdel Kader,E (1816)-Zayan,O (2233) Cairo 2016}) 9... Nf6 {[%emt 0:02:46]} 10. Nc3 {[%emt 0:02:21]} O-O {[%emt 0:00:49]} 11. g3 {[%emt 0:06:54] [#]} (11. Kg1 $17) 11... Ne5 $1 {[%emt 0:06:32]} 12. Qb3 {[%emt 0:10:57]} (12. Be2 $17 {was worth a try.}) 12... Nxf3 {[%emt 0:02:28]} 13. Nxf3 {[%emt 0:00:26]} Qh5 {[%emt 0:03:50]} 14. Nd4 {[%emt 0:06:48]} (14. Kg2 {was called for.}) 14... b6 {[%emt 0:02:14]} 15. h4 {[%emt 0:05:04]} Bb7 {[%emt 0:01:06]} 16. Rg1 {[%emt 0:02:13]} Ng4 {[%emt 0:03:49]} 17. Nd5 {[%emt 0:17:55]} Nxe3+ {[%emt 0:01:52]} 18. fxe3 {[%emt 0:00:57]} e6 {[%emt 0:02:29]} 19. Nf4 {[%emt 0:03:04]} Qe5 {[%emt 0:03:49]} 20. Rd1 {[%emt 0:16:44]} Rfd8 {[%emt 0:04:32]} 21. g4 {[%emt 0:07:02]} Qe4 {[%emt 0:04:48]} 22. Nb5 {[%emt 0:02:25]} d5 {[%emt 0:13:19]} 23. cxd5 {[%emt 0:05:26]} Bxd5 {[%emt 0:00:17]} 24. Nxd5 {[%emt 0:01:41]} Rxd5 {[%emt 0:00:50]} 25. Rxd5 {[%emt 0:02:29]} exd5 {[%emt 0:00:07]} 26. Kf2 {[%emt 0:00:47]} Rc8 {[%emt 0:04:48]} (26... Qe7 $142 27. g5 Qe4) 27. Nc3 $2 {[%emt 0:00:41]} (27. Nd6 {only move.} Qc2+ 28. Qxc2 Rxc2+ 29. Kf3) 27... Bxc3 {[%emt 0:01:28]} 28. bxc3 {[%emt 0:00:01]} Re8 {[%emt 0:00:48]} 29. Rg3 {[%emt 0:00:45]} Qd3 {[%emt 0:02:41]} 30. Qa4 {[%emt 0:00:47]} Qd2+ {[%emt 0:04:16]} 31. Kf1 {[%emt 0:00:06]} Rxe3 {[%emt 0:01:38]} 32. Rxe3 {[%emt 0:00:01]} Qxe3 {[%emt 0:00:10]} 33. Qxa7 {[%emt 0:00:27]} Qh3+ {[%emt 0:01:31]} 34. Ke1 {[%emt 0:01:00]} Qxc3+ {[%emt 0:00:26]} 35. Ke2 {[%emt 0:00:52]} Qc4+ {[%emt 0:01:59]} 36. Ke3 {[%emt 0:00:31]} (36. Kf3 $142 Qe4+ 37. Kg3) 36... Qc3+ $2 {[%emt 0:01:01]} (36... Qxg4 $19 37. Qb8+ Kg7) 37. Ke2 $1 {[%emt 0:00:21]} Qe5+ {[%emt 0:00:33]} 38. Kd3 {[%emt 0:00:40]} Qd6 {[%emt 0:02:20]} 39. g5 {[%emt 0:00:29]} Kg7 {[%emt 0:01:34]} 40. Kc2 {[%emt 0:00:00]} Qc5+ {[%emt 0:00:00]} 41. Kd2 {[%emt 0:02:19]} (41. Kb1 $142 Qb4+ 42. Kc2) 41... d4 {[%emt 0:02:25]} 42. Qd7 {[%emt 0:04:51]} Qc3+ {[%emt 0:01:22]} 43. Ke2 {[%emt 0:02:10]} Qe3+ {[%emt 0:00:12]} 44. Kd1 {[%emt 0:00:28]} d3 {[%emt 0:01:46]} 45. Qc6 {[%emt 0:01:22]} Qe2+ {[%emt 0:00:44] Double Attack} 46. Kc1 {[%emt 0:00:26]} d2+ {[%emt 0:00:06]} 47. Kb2 {[%emt 0:00:14]} d1=Q+ {[%emt 0:00:09]} 48. Ka3 {[%emt 0:00:41]} Qdd3+ {[%emt 0:00:37]} 49. Kb4 {[%emt 0:01:23]} Qg4+ {[%emt 0:00:34] Double Attack} 50. Qe4 {[%emt 0:00:51]} Qgxe4# {[%emt 0:00:09]} 0-1

[Event "XIV Figueira da Foz Open 2020"]
[Site "Figueira da Foz"]
[Date "2020.10.30"]
[Round "8.16"]
[White "Silva, Jose Lucas Ferreira"]
[Black "Santos, Luis Manuel Freire R"]
[Result "0-1"]
[ECO "C50"]
[WhiteElo "1336"]
[BlackElo "1891"]
[Annotator "NA RC"]
[PlyCount "48"]
[EventDate "2020.10.24"]
[EventType "swiss"]
[EventCountry "POR"]
[SourceTitle "playchess.com"]
[Source "ChessBase"]
[SourceQuality "1"]
[TimeControl "40/5400+30:1800+30"]

{[%evp 8,47,22,22,37,36,45,39,47,31,89,89,82,59,60,50,32767,32767,32767,32767,80,67,75,54,54,28,55,52,48,60,63,-60,-31,-228,-226,32767,32767,32767,32767,32767,-29999,-29999]} 1. e4 {[%emt 0:00:00]} e5 {[%emt 0:04:32]} 2. Nf3 {[%emt 0:00:00]} Nc6 {[%emt 0:00:22]} 3. d4 {[%emt 0:00:00]} exd4 {[%emt 0:01:40]} 4. Bc4 {[%emt 0:00:00]} Be7 {[%emt 0:01:16]} 5. Nxd4 {[%emt 0:00:22]} Nxd4 {[%emt 0:02:16]} 6. Qxd4 {[%emt 0:00:16]} Nf6 {[%emt 0:00:33]} 7. Nc3 {[%emt 0:01:04]} d6 {[%emt 0:04:11]} 8. O-O {[%emt 0:02:14]} c5 {[%emt 0:02:43]} (8... O-O $14) 9. Qd3 {[%emt 0:01:01]} O-O {[%emt 0:00:43]} 10. Nd5 {[%emt 0:01:56] [#]} Be6 $146 {[%emt 0:04:31] C47: Scotch Four Knights and Four Knights with 4 g3.} ({Predecessor:} 10... Nxd5 11. Bxd5 Qc7 12. Bf4 Be6 13. Rad1 Rad8 14. Rd2 a6 15. Rfd1 b5 16. Bxe6 fxe6 17. Bxd6 Rxd6 18. Qg3 Rxd2 19. Rxd2 Qxg3 20. hxg3 {0-1 (59) Monsalve,A (2097)-Ruiz,M (2060) Bogota 2008}) 11. Rd1 {[%emt 0:02:21]} Nxd5 {[%emt 0:03:11]} 12. Bxd5 {[%emt 0:00:07]} Qd7 {[%emt 0:01:57]} 13. Bf4 {[%emt 0:01:39]} Rfd8 {[%emt 0:05:18]} 14. Qg3 {[%emt 0:01:43]} g6 {[%emt 0:04:57]} 15. Qc3 {[%emt 0:01:42]} Bf8 {[%emt 0:02:09]} 16. Bg5 {[%emt 0:01:19]} Bg7 {[%emt 0:02:49]} 17. Bf6 {[%emt 0:00:08]} Bxf6 {[%emt 0:03:23]} 18. Qxf6 {[%emt 0:00:06]} Re8 {[%emt 0:01:48]} 19. e5 {[%emt 0:01:39]} ({White should play} 19. f3 $14) 19... dxe5 {[%emt 0:07:32]} 20. Qxe5 $2 {[%emt 0:03:04]} (20. Bxe6 $15 Qxe6 21. Qxe6 Rxe6 22. Rd7) 20... Bg4 $1 {[%emt 0:00:44] Discovered Attack} 21. Qc3 {[%emt 0:02:27]} Bxd1 {[%emt 0:01:18]} 22. Rxd1 {[%emt 0:00:05]} Qe7 {[%emt 0:01:56]} 23. Qf3 {[%emt 0:01:53] [#]} Qe1+ $1 {[%emt 0:02:05] Back Rank} 24. Rxe1 {[%emt 0:00:04]} Rxe1# 0-1

[Event "XIV Figueira da Foz Open 2020"]
[Site "Figueira da Foz"]
[Date "2020.10.30"]
[Round "8.18"]
[White "Dias, Jose Oliveira Gaspar"]
[Black "Movsisyan, Tigran"]
[Result "0-1"]
[ECO "A11"]
[WhiteElo "1589"]
[BlackElo "1730"]
[Annotator "NA RC"]
[PlyCount "106"]
[EventDate "2020.10.24"]
[EventType "swiss"]
[EventCountry "POR"]
[SourceTitle "playchess.com"]
[Source "ChessBase"]
[SourceQuality "1"]
[TimeControl "40/5400+30:1800+30"]

1. c4 {[%emt 0:03:53]} c6 {[%emt 0:00:00]} 2. Nf3 {[%emt 0:01:19]} d5 {[%emt 0:00:00]} 3. g3 {[%emt 0:00:45]} dxc4 {[%emt 0:01:07]} 4. a4 {[%emt 0:01:00]} Nf6 {[%emt 0:01:17]} 5. Bg2 {[%emt 0:00:05]} Bf5 {[%emt 0:00:38]} 6. Nc3 {[%emt 0:00:54]} e6 {[%emt 0:01:34]} 7. Ne5 {[%emt 0:00:42]} Bc5 {[%emt 0:04:31]} 8. Nxc4 {[%emt 0:02:15]} O-O {[%emt 0:00:16]} 9. O-O {[%emt 0:02:10]} Na6 {[%emt 0:02:34]} 10. d3 {[%emt 0:02:51]} Nb4 {[%emt 0:01:18]} 11. a5 {[%emt 0:02:22]} Bg6 {[%emt 0:01:26]} 12. Ne5 {[%emt 0:10:18]} Nbd5 {[%emt 0:06:08]} 13. a6 {[%emt 0:15:14]} Qc7 {[%emt 0:14:32]} 14. axb7 {[%emt 0:06:15]} Rab8 {[%emt 0:02:24]} 15. d4 {[%emt 0:06:26]} Bb6 {[%emt 0:01:24]} 16. Qa4 {[%emt 0:08:15]} Qxb7 {[%emt 0:27:38]} 17. Nxc6 {[%emt 0:09:24]} Rbc8 {[%emt 0:01:05]} 18. Ne5 {[%emt 0:00:44]} Bh5 {[%emt 0:10:43]} 19. Re1 {[%emt 0:03:45]} Qe7 {[%emt 0:08:19]} 20. Bd2 {[%emt 0:02:53]} Nb4 {[%emt 0:01:02]} 21. e3 {[%emt 0:04:03]} Ng4 {[%emt 0:06:09]} 22. Nc6 {[%emt 0:04:51]} Nxc6 {[%emt 0:02:11]} 23. Bxc6 {[%emt 0:00:10]} e5 {[%emt 0:01:41]} 24. Bd7 {[%emt 0:03:51]} Rcd8 {[%emt 0:01:27]} 25. Bc6 {[%emt 0:01:49]} exd4 {[%emt 0:01:04]} 26. exd4 {[%emt 0:01:10]} Qf6 {[%emt 0:00:00]} 27. Ne4 {[%emt 0:00:10]} Qf5 {[%emt 0:01:03]} 28. Be3 {[%emt 0:01:36]} h6 {[%emt 0:01:15]} 29. Qb5 {[%emt 0:01:21]} Qxb5 {[%emt 0:00:57]} 30. Bxb5 {[%emt 0:00:03]} Bxd4 {[%emt 0:00:26]} 31. Bxd4 {[%emt 0:01:27]} Rxd4 {[%emt 0:00:01]} 32. Rxa7 {[%emt 0:00:20]} Ne5 {[%emt 0:00:38]} 33. Re3 {[%emt 0:01:54]} Rd1+ {[%emt 0:01:11]} 34. Kg2 {[%emt 0:00:33]} f6 {[%emt 0:00:25]} 35. Nc3 {[%emt 0:00:46]} Rd2 {[%emt 0:00:19]} 36. b3 {[%emt 0:00:23]} Rfd8 {[%emt 0:00:20]} 37. Ne4 {[%emt 0:01:08]} Rc2 {[%emt 0:00:36]} 38. h3 {[%emt 0:00:26]} Bf7 {[%emt 0:00:33]} 39. Ba4 {[%emt 0:00:30]} Bd5 {[%emt 0:00:30]} 40. g4 {[%emt 0:00:00]} Bxe4+ {[%emt 0:00:00]} 41. Rxe4 {[%emt 0:00:42]} Rdd2 {[%emt 0:00:31]} 42. Rf4 {[%emt 0:00:42]} Nd3 {[%emt 0:01:14]} 43. Rf5 {[%emt 0:03:25]} Nxf2 {[%emt 0:02:20]} 44. Rd7 {[%emt 0:07:37]} Nd3+ {[%emt 0:08:00]} 45. Kg3 {[%emt 0:04:24]} Rg2+ {[%emt 0:00:09]} 46. Kh4 {[%emt 0:01:30]} Ne5 {[%emt 0:00:31]} 47. Rxe5 {[%emt 0:03:24]} fxe5 {[%emt 0:00:16]} 48. Kh5 {[%emt 0:01:30]} Rcd2 {[%emt 0:08:47]} 49. Re7 {[%emt 0:03:27]} Rg3 {[%emt 0:03:24]} 50. Kg6 {[%emt 0:06:42]} Rd6+ {[%emt 0:01:21]} 51. Kf5 {[%emt 0:00:21]} Re3 {[%emt 0:03:19]} 52. g5 {[%emt 0:01:59]} g6+ {[%emt 0:00:29]} 53. Kg4 {[%emt 0:01:27]} Rd4# {[%emt 0:00:04]} 0-1

[Event "XIV Figueira da Foz Open 2020"]
[Site "Figueira da Foz"]
[Date "2020.10.31"]
[Round "9.16"]
[White "Movsisyan, Tigran"]
[Black "Silva, Jose Lucas Ferreira"]
[Result "0-1"]
[ECO "B24"]
[WhiteElo "1730"]
[BlackElo "1336"]
[Annotator "NA RC"]
[PlyCount "68"]
[EventDate "2020.10.24"]
[EventType "swiss"]
[EventCountry "POR"]
[SourceTitle "playchess.com"]
[Source "ChessBase"]
[SourceQuality "1"]
[TimeControl "40/5400+30:1800+30"]

1. e4 {[%emt 0:03:14]} c5 {[%emt 0:00:00]} 2. Nc3 {[%emt 0:00:06]} Nc6 {[%emt 0:00:02]} 3. Bb5 {[%emt 0:00:01]} g6 {[%emt 0:00:19]} 4. Bxc6 {[%emt 0:00:21]} bxc6 {[%emt 0:01:27]} 5. f4 {[%emt 0:00:12]} d5 {[%emt 0:02:12]} 6. d3 {[%emt 0:00:26]} Bg7 {[%emt 0:03:03]} 7. Bd2 {[%emt 0:01:20]} Nf6 {[%emt 0:03:46]} 8. e5 {[%emt 0:00:25]} Ng8 {[%emt 0:00:22]} 9. Nf3 {[%emt 0:00:46]} d4 {[%emt 0:02:57]} 10. Na4 {[%emt 0:01:02]} Qd5 {[%emt 0:00:26]} 11. b3 {[%emt 0:01:23]} f6 {[%emt 0:02:35]} 12. O-O {[%emt 0:00:12]} fxe5 {[%emt 0:01:15]} 13. fxe5 {[%emt 0:00:17]} e6 {[%emt 0:03:41]} 14. Nb2 {[%emt 0:03:00]} Ne7 {[%emt 0:04:50]} 15. Nc4 {[%emt 0:02:49]} O-O {[%emt 0:01:41]} 16. Qe2 {[%emt 0:00:25]} Ba6 {[%emt 0:02:34]} 17. Rab1 {[%emt 0:04:50]} Bxc4 {[%emt 0:13:50]} 18. bxc4 {[%emt 0:00:06]} Qd7 {[%emt 0:00:07]} 19. Rb3 {[%emt 0:01:33]} Rab8 {[%emt 0:02:22]} 20. Rfb1 {[%emt 0:00:13]} Qc7 {[%emt 0:00:19]} 21. Qe1 {[%emt 0:01:15]} Rxb3 {[%emt 0:05:37]} 22. Rxb3 {[%emt 0:00:06]} Rb8 {[%emt 0:00:13]} 23. Ba5 {[%emt 0:02:00]} Qc8 {[%emt 0:00:58]} 24. Ng5 {[%emt 0:02:06]} Rxb3 {[%emt 0:01:11]} 25. axb3 {[%emt 0:00:02]} h6 {[%emt 0:00:18]} 26. Ne4 {[%emt 0:00:55]} Nf5 {[%emt 0:03:58]} 27. Nxc5 {[%emt 0:01:24]} Ne3 {[%emt 0:00:42]} 28. Qg3 {[%emt 0:02:23]} Qf8 {[%emt 0:00:38]} 29. h3 {[%emt 0:05:25]} Qxc5 {[%emt 0:01:01]} 30. b4 {[%emt 0:00:45]} Qxe5 {[%emt 0:00:48]} 31. Qxg6 {[%emt 0:00:02]} Qf5 {[%emt 0:01:13]} 32. Qe8+ {[%emt 0:00:15]} Kh7 {[%emt 0:00:16]} 33. Qxc6 {[%emt 0:00:02]} Qf1+ {[%emt 0:00:15]} 34. Kh2 {[%emt 0:00:02]} Be5+ {[%emt 0:00:18]} 0-1